bitfinex/quotes_ETHUSD_20250823
["timestamp","ask_amount","ask_price","bid_price","bid_amount"]
[1755967923128,7.2641509,4756.1,4756.0,0.7714]
[1755967923830,0.33101973,4756.4,4756.0,0.7714]
[1755967924019,3.509,4756.3,4756.0,0.4111]
[1755967924203,3.509,4756.3,4756.1,0.4651]
[1755967924407,3.509,4756.3,4756.2,0.3053]
[1755967924607,3.509,4756.3,4756.2,1.07048469]
[1755967924990,3.509,4756.3,4756.2,0.7704]
[1755967925917,0.33101973,4756.4,4756.2,0.7704]
[1755967926118,3.509,4756.3,4756.2,0.3053]
[1755967926507,3.511,4756.4,4756.2,0.3053]
[1755967926841,6.15359762,4756.3,4756.0,0.001]
[1755967927039,5.10256302,4756.1,4756.0,0.001]
[1755967927200,6.04888603,4756.1,4756.0,0.001]
[1755967927401,6.29440356,4756.1,4756.0,0.001]
[1755967927639,6.49107818,4756.1,4756.0,0.001]
[1755967928413,6.68775919,4756.1,4756.0,0.001]
[1755967929129,7.25394462,4756.1,4756.0,0.001]
[1755967930729,7.20394462,4756.1,4756.0,0.001]
[1755967930928,7.53297294,4756.1,4756.0,0.001]
[1755967931701,10.59977294,4756.1,4756.0,0.001]
[1755967931924,11.04197294,4756.1,4756.0,0.001]
[1755967933949,10.47578751,4756.1,4756.0,0.001]
[1755967934154,10.56006751,4756.1,4756.0,0.001]
[1755967935583,11.1261611,4756.1,4756.0,0.001]
[1755967936362,10.56006751,4756.1,4756.0,0.001]
[1755967936859,10.56206751,4756.1,4756.0,0.001]
[1755967937055,10.36539289,4756.1,4756.0,0.001]
[1755967937223,10.56182442,4756.1,4756.0,0.001]
[1755967939864,10.56622442,4756.1,4756.0,0.001]
[1755967940664,10.23707739,4756.1,4756.0,0.001]
[1755967941666,9.79047739,4756.1,4756.0,0.001]
[1755967942461,9.49397739,4756.1,4756.0,0.2979]
[1755967942666,9.29742112,4756.1,4756.0,0.2979]
[1755967943069,9.29742112,4756.1,4756.0,0.001]
[1755967943441,9.29742112,4756.1,4756.0,0.2979]
[1755967943846,9.62644783,4756.1,4756.0,0.2979]
[1755967944046,9.62644783,4756.1,4756.0,0.001]
[1755967944249,9.92091044,4756.1,4756.0,0.001]
[1755967945161,9.62641044,4756.1,4756.0,0.001]
[1755967946166,9.92091044,4756.1,4756.0,0.001]
[1755967946959,9.72451027,4756.1,4756.0,0.001]
[1755967947275,10.36750687,4756.1,4756.0,0.001]
[1755967947735,10.03848016,4756.1,4756.0,0.001]
[1755967951070,10.36753384,4756.1,4756.0,0.001]
[1755967954870,9.92093384,4756.1,4756.0,0.001]
[1755967955452,9.62643384,4756.1,4756.0,0.001]
[1755967955679,9.62643384,4756.1,4756.0,0.2979]
[1755967955878,10.3807198,4756.1,4756.0,0.2979]
[1755967956080,9.62643384,4756.1,4756.0,0.001]
[1755967956253,9.92093384,4756.1,4756.0,0.001]
[1755967956454,10.03888098,4756.1,4756.0,0.001]
[1755967956788,10.0390622,4756.1,4756.0,0.001]
[1755967957385,10.03906212,4756.1,4756.0,0.001]
[1755967957691,10.03906188,4756.1,4756.0,0.001]
[1755967958384,10.48566188,4756.1,4756.0,0.001]
[1755967959173,10.03906188,4756.1,4756.0,0.001]
[1755967959486,9.7100082,4756.1,4756.0,0.001]
[1755967960589,5.10260723,4756.0,4755.8,0.021]
[1755967960758,9.66066984,4755.9,4755.8,0.021]
[1755967960962,5.10269565,4755.8,4755.7,0.001]
[1755967961161,8.888438,4755.8,4755.7,0.001]
[1755967961384,8.441838,4755.8,4755.7,0.001]
[1755967961772,8.526131,4755.8,4755.7,0.001]
[1755967962994,10.42655817,4755.8,4755.7,0.001]
[1755967963199,10.42644209,4755.8,4755.7,0.001]
[1755967964260,9.30169236,4755.8,4755.7,0.001]
[1755967964463,10.42644209,4755.8,4755.7,0.001]
[1755967965403,9.30169236,4755.8,4755.7,0.001]
[1755967965700,10.42644209,4755.8,4755.7,0.001]
[1755967966472,10.42632268,4755.8,4755.7,0.001]
[1755967966992,10.4263084,4755.8,4755.7,0.001]
[1755967968265,9.30155867,4755.8,4755.7,0.001]
[1755967969904,8.85495867,4755.8,4755.7,0.001]
[1755967970969,8.52588123,4755.8,4755.7,0.001]
[1755967972192,21.70929976,4755.8,4755.7,0.761]
[1755967972378,22.01409976,4755.8,4755.7,0.001]
[1755967972574,22.57584098,4755.8,4755.7,0.001]
[1755967973696,22.13194098,4755.8,4755.7,0.001]
[1755967975027,22.46101754,4755.8,4755.7,0.001]
[1755967976132,22.14677415,4755.8,4755.7,0.001]
[1755967976333,22.46126155,4755.8,4755.7,0.001]
[1755967977406,24.02991128,4755.8,4755.7,0.001]
[1755967978105,23.58601128,4755.8,4755.7,0.001]
[1755967979343,22.15646155,4755.8,4755.7,0.2947]
[1755967979904,22.15646155,4755.8,4755.7,0.001]
[1755967980840,22.03852878,4755.8,4755.7,0.2947]
[1755967981041,22.15654923,4755.8,4755.7,0.2947]
[1755967981640,23.28155691,4755.8,4755.7,0.2947]
[1755967982607,23.28155691,4755.8,4755.7,0.001]
[1755967982814,24.24635691,4755.8,4755.7,0.001]
[1755967983020,24.69025691,4755.8,4755.7,0.001]
[1755967983222,24.24635691,4755.8,4755.7,0.001]
[1755967983738,23.94155691,4755.8,4755.7,0.001]
[1755967984446,20.43255691,4755.8,4755.7,0.001]
[1755967984618,23.94155691,4755.8,4755.7,0.001]
[1755967984819,23.93152388,4755.8,4755.7,0.001]
[1755967985021,24.69015726,4755.8,4755.7,0.001]
[1755967985543,23.94340715,4755.8,4755.7,0.001]
[1755967985722,24.69208123,4755.8,4755.7,0.001]
[1755967986047,24.69205581,4755.8,4755.7,0.001]
[1755967987039,23.56730608,4755.8,4755.7,0.001]
[1755967988054,22.81860608,4755.8,4755.7,0.2947]
[1755967988217,22.81858201,4755.8,4755.7,0.001]
[1755967988430,23.12338201,4755.8,4755.7,0.001]
[1755967988965,7.90281361,4755.8,4755.7,0.2947]
[1755967989255,11.41181361,4755.8,4755.7,0.761]
[1755967989827,8.86206091,4755.8,4755.7,0.761]
[1755967990118,11.91665447,4755.8,4755.7,0.761]
[1755967990322,11.16141279,4755.8,4755.7,0.761]
[1755967990751,11.16041279,4755.8,4755.7,0.761]
[1755967991323,11.16041279,4755.8,4755.7,0.2947]
[1755967991528,11.46521279,4755.8,4755.7,0.001]
[1755967991739,11.90911279,4755.8,4755.7,0.001]
[1755967992140,11.46521279,4755.8,4755.7,0.001]
[1755967992345,11.58321405,4755.8,4755.7,0.001]
[1755967992540,12.02711594,4755.8,4755.7,0.001]
[1755967992842,11.16041279,4755.8,4755.7,0.001]
[1755967993232,11.48948924,4755.8,4755.7,0.001]
[1755967994066,11.79428924,4755.8,4755.7,0.001]
[1755967994561,11.40100564,4755.8,4755.7,0.001]
[1755967994743,11.7943536,4755.8,4755.7,0.001]
[1755967995259,11.91235682,4755.8,4755.7,0.001]
[1755967995625,11.91235682,4755.8,4755.7,0.2947]
[1755967995626,11.60755682,4755.8,4755.7,0.2947]
[1755967996462,11.4895536,4755.8,4755.7,0.2947]
[1755967996668,11.60758355,4755.8,4755.7,0.2947]
[1755967997071,12.35628355,4755.8,4755.7,0.001]
[1755967997252,13.01628355,4755.8,4755.7,0.001]
[1755967997455,5.76273987,4755.7,4755.6,0.001]
[1755967997748,7.47595832,4755.7,4755.6,0.001]
[1755967997972,7.47607438,4755.7,4755.6,0.001]
[1755967998745,7.56037438,4755.7,4755.6,0.001]
[1755967998944,7.66517438,4755.7,4755.6,0.001]
[1755968000250,7.66548568,4755.7,4755.6,0.001]
[1755968000980,18.74135077,4755.7,4755.6,0.001]
[1755968001176,18.74142867,4755.7,4755.6,0.001]
[1755968001879,18.29752867,4755.7,4755.6,0.001]
[1755968003583,18.74792867,4755.7,4755.6,0.001]
[1755968004382,18.43300707,4755.7,4755.6,0.001]
[1755968004584,18.55099725,4755.7,4755.6,0.001]
[1755968004792,18.74761697,4755.7,4755.6,0.001]
[1755968010187,18.74751706,4755.7,4755.6,0.001]
[1755968010486,18.29711706,4755.7,4755.6,0.001]
[1755968011072,17.99231706,4755.7,4755.6,0.3136]
[1755968011492,17.99231706,4755.7,4755.6,0.001]
[1755968011893,18.28801706,4755.7,4755.6,0.001]
[1755968012258,18.73841706,4755.7,4755.6,0.001]
[1755968014214,18.34513559,4755.7,4755.6,0.001]
[1755968014408,18.73800483,4755.7,4755.6,0.001]
[1755968015276,18.28760508,4755.7,4755.6,0.001]
[1755968016387,18.73800508,4755.7,4755.6,0.001]
[1755968017691,18.67610508,4755.7,4755.6,0.001]
[1755968019482,18.34700839,4755.7,4755.6,0.001]
[1755968021010,17.66282478,4755.7,4755.6,0.001]
[1755968021240,18.34642478,4755.7,4755.6,0.001]
[1755968021506,5.76278408,4755.6,4755.4,0.001]
[1755968021673,10.47250059,4755.6,4755.4,0.001]
[1755968022082,10.55679959,4755.6,4755.4,0.001]
[1755968022808,10.88590831,4755.6,4755.4,0.001]
[1755968023025,10.64840831,4755.6,4755.5,0.3136]
[1755968023217,10.64840831,4755.6,4755.5,0.001]
[1755968023599,10.94410831,4755.6,4755.5,0.001]
[1755968024137,10.9442537,4755.6,4755.5,0.001]
[1755968024430,11.3946537,4755.6,4755.5,0.001]
[1755968024791,11.3936537,4755.6,4755.5,0.001]
[1755968024993,21.4991221,4755.6,4755.5,0.3136]
[1755968025626,15.22933802,4755.6,4755.5,0.7413]
[1755968025813,20.72121978,4755.6,4755.5,0.7413]
[1755968026207,20.83918491,4755.6,4755.5,0.7413]
[1755968026413,20.64268104,4755.6,4755.5,0.3136]
[1755968026626,21.77500946,4755.6,4755.5,0.3136]
[1755968026924,21.77500946,4755.6,4755.5,0.001]
[1755968026925,22.73070946,4755.6,4755.5,0.001]
[1755968027322,22.43500946,4755.6,4755.5,0.001]
[1755968027523,22.63166047,4755.6,4755.5,0.3136]
[1755968027904,22.30255175,4755.6,4755.5,0.3136]
[1755968028519,22.30260526,4755.6,4755.5,0.3136]
[1755968029237,22.30260526,4755.6,4755.5,0.001]
[1755968029238,21.93617684,4755.6,4755.5,0.001]
[1755968030510,21.93633852,4755.6,4755.5,0.001]
[1755968032310,22.26546069,4755.6,4755.5,0.001]
[1755968032510,21.79806069,4755.6,4755.5,0.001]
[1755968033322,22.26546069,4755.6,4755.5,0.001]
[1755968033723,22.26542646,4755.6,4755.5,0.001]
[1755968034237,22.06876954,4755.6,4755.5,0.001]
[1755968034444,22.2654243,4755.6,4755.5,0.001]
[1755968035039,17.9925243,4755.6,4755.5,0.3004]
[1755968035242,21.4995243,4755.6,4755.5,0.7357]
[1755968035409,6.5857559,4755.6,4755.5,0.7357]
[1755968035609,10.0927559,4755.6,4755.5,0.7357]
[1755968036838,9.76363373,4755.6,4755.5,0.7357]
[1755968037151,9.7636519,4755.6,4755.5,0.7357]
[1755968037350,9.7636519,4755.6,4755.5,0.001]
[1755968037644,10.0621519,4755.6,4755.5,0.001]
[1755968037947,4.66086782,4755.6,4755.5,0.3004]
[1755968038260,5.10911907,4755.6,4755.5,0.7357]
[1755968040730,4.54287367,4755.6,4755.5,0.7357]
[1755968041138,1.36494,4755.6,4755.5,0.7357]
[1755968041347,4.41848816,4755.6,4755.5,0.7357]
[1755968041547,4.36494,4755.6,4755.5,0.7357]
[1755968041714,7.87194,4755.6,4755.5,0.7357]
[1755968042268,7.6752901,4755.6,4755.5,0.3004]
[1755968042445,11.4990657,4755.6,4755.5,0.001]
[1755968042744,5.76291674,4755.3,4755.2,0.001]
[1755968042949,10.11626944,4755.3,4755.2,0.001]
[1755968043149,10.22106944,4755.3,4755.2,0.001]
[1755968043354,11.7412409,4755.3,4755.2,0.001]
[1755968043956,10.98696944,4755.3,4755.2,0.001]
[1755968044823,10.31520669,4755.3,4755.2,0.3004]
[1755968045530,9.56106944,4755.3,4755.2,0.3004]
[1755968046736,11.17906944,4755.3,4755.2,0.001]
[1755968048078,11.47756944,4755.3,4755.2,0.001]
[1755968048262,12.23170669,4755.3,4755.2,0.001]
[1755968048666,11.47756944,4755.3,4755.2,0.001]
[1755968048980,12.31608097,4755.3,4755.2,0.001]
[1755968049171,11.56186544,4755.3,4755.2,0.001]
[1755968050548,11.26336544,4755.3,4755.2,0.001]
[1755968050754,12.01758284,4755.3,4755.2,0.001]
[1755968051252,11.26336544,4755.3,4755.2,0.001]
[1755968051448,11.26336544,4755.3,4755.2,0.3004]
[1755968051648,12.01760645,4755.3,4755.2,0.3004]
[1755968051853,11.62470559,4755.3,4755.2,0.3004]
[1755968052053,12.01755663,4755.3,4755.2,0.3004]
[1755968052455,12.01755663,4755.3,4755.2,0.001]
[1755968052889,12.01755854,4755.3,4755.2,0.001]
[1755968053361,12.34667588,4755.3,4755.2,0.001]
[1755968054958,12.64517588,4755.3,4755.2,0.001]
[1755968055272,12.35833487,4755.3,4755.2,0.001]
[1755968055480,13.01833487,4755.3,4755.2,0.001]
[1755968055667,12.25243487,4755.3,4755.2,0.001]
[1755968055989,12.55093487,4755.3,4755.2,0.001]
[1755968056582,13.01833487,4755.3,4755.2,0.001]
[1755968061389,11.59243487,4755.3,4755.2,0.3051]
[1755968061594,11.19958192,4755.3,4755.2,0.3051]
[1755968061752,11.59242039,4755.3,4755.2,0.3051]
[1755968061959,11.88442039,4755.3,4755.2,0.001]
[1755968062396,12.34603127,4755.3,4755.2,0.001]
[1755968063562,11.88443127,4755.3,4755.2,0.001]
[1755968064421,12.63808279,4755.3,4755.2,0.001]
[1755968064768,11.88364319,4755.3,4755.2,0.001]
[1755968065077,11.88378506,4755.3,4755.2,0.001]
[1755968066505,11.59178506,4755.3,4755.2,0.7743]
[1755968067776,11.59178506,4755.3,4755.2,0.001]
[1755968067982,12.3464791,4755.3,4755.2,0.001]
[1755968068183,12.34664062,4755.3,4755.2,0.001]
[1755968069381,12.34664062,4755.3,4755.2,0.3051]
[1755968071308,11.26282924,4755.3,4755.2,0.3051]
[1755968071508,11.26306198,4755.3,4755.2,0.001]
[1755968071680,12.01666198,4755.3,4755.2,0.001]
[1755968072191,13.2675412,4755.3,4755.2,0.001]
[1755968073744,13.9275412,4755.3,4755.2,0.001]
[1755968074426,14.25666294,4755.3,4755.2,0.001]
[1755968075208,13.12379728,4755.3,4755.2,0.001]
[1755968077244,5.76296096,4755.2,4755.1,0.001]
[1755968077406,7.01902376,4755.2,4755.1,0.001]
[1755968077606,7.48062376,4755.2,4755.1,0.001]
[1755968078963,6.72702376,4755.2,4755.1,0.3051]
[1755968079261,10.23402376,4755.2,4755.1,0.001]
[1755968079450,6.72702376,4755.2,4755.1,0.3051]
[1755968079652,11.47065908,4755.2,4755.1,0.3051]
[1755968079856,7.30465908,4755.2,4755.1,0.3051]
[1755968080150,9.55980997,4755.2,4755.1,0.7743]
[1755968080352,7.45684901,4755.2,4755.1,0.7743]
[1755968080523,9.55980997,4755.2,4755.1,0.7743]
[1755968081125,9.16642472,4755.2,4755.1,0.7743]
[1755968081325,9.5597875,4755.2,4755.1,0.3051]
[1755968081861,9.88889959,4755.2,4755.1,0.3051]
[1755968082025,9.8889022,4755.2,4755.1,0.001]
[1755968082452,9.8889022,4755.2,4755.1,0.3051]
[1755968082653,9.9731982,4755.2,4755.1,0.3051]
[1755968083069,9.9731982,4755.2,4755.1,0.001]
[1755968083271,10.9251982,4755.2,4755.1,0.001]
[1755968083430,12.63763443,4755.2,4755.1,0.001]
[1755968083975,12.17603443,4755.2,4755.1,0.001]
[1755968084535,10.75118072,4755.2,4755.1,0.001]
[1755968084746,10.75117687,4755.2,4755.1,0.001]
[1755968084932,10.63317981,4755.2,4755.1,0.001]
[1755968085129,6.46717981,4755.2,4755.1,0.3051]
[1755968085439,4.87021885,4755.2,4755.1,0.7743]
[1755968085850,7.87021885,4755.2,4755.1,0.7743]
[1755968087133,8.43622749,4755.2,4755.1,0.7743]
[1755968087334,7.87021885,4755.2,4755.1,0.7743]
[1755968087534,8.43622703,4755.2,4755.1,0.7743]
[1755968089351,8.10711494,4755.2,4755.1,0.7743]
[1755968089941,8.10699316,4755.2,4755.1,0.7743]
[1755968090966,7.91030916,4755.2,4755.1,0.7743]
[1755968091135,8.10659294,4755.2,4755.1,0.7743]
[1755968092434,8.43569456,4755.2,4755.1,0.7743]
[1755968093680,7.67333417,4755.2,4755.1,0.7743]
[1755968094272,7.67333417,4755.2,4755.1,1.06424707]
[1755968094575,7.67333417,4755.2,4755.1,0.7743]
[1755968097580,7.67328453,4755.2,4755.1,0.7743]
[1755968100686,7.67324036,4755.2,4755.1,0.7743]
[1755968100851,7.34413874,4755.2,4755.1,0.7743]
[1755968103079,7.25984274,4755.2,4755.1,0.7743]
[1755968103891,7.25984274,4755.2,4755.1,0.3051]
[1755968104298,7.25984274,4755.2,4755.1,0.7523]
[1755968104666,7.25984274,4755.2,4755.1,0.3051]
[1755968105192,7.5889339,4755.2,4755.1,0.3051]
[1755968106596,7.5889339,4755.2,4755.1,0.7523]
[1755968107476,8.3574339,4755.2,4755.1,0.001]
[1755968107688,8.02834274,4755.2,4755.1,0.001]
[1755968107886,7.57634274,4755.2,4755.1,0.001]
[1755968108088,10.1313037,4755.2,4755.1,0.001]
[1755968108269,10.41217496,4755.2,4755.1,0.001]
[1755968109203,10.97806136,4755.2,4755.1,0.001]
[1755968109405,10.97833398,4755.2,4755.1,0.001]
[1755968109902,10.97835607,4755.2,4755.1,0.001]
[1755968111102,11.30746698,4755.2,4755.1,0.001]
[1755968112103,10.74158058,4755.2,4755.1,0.001]
[1755968114499,11.49671602,4755.2,4755.1,0.001]
[1755968114829,10.74158058,4755.2,4755.1,0.001]
[1755968115789,10.74174958,4755.2,4755.1,0.001]
[1755968117582,10.65604958,4755.2,4755.1,0.001]
[1755968117891,10.65804958,4755.2,4755.1,0.001]
[1755968118455,11.41325586,4755.2,4755.1,0.001]
[1755968118944,10.65804958,4755.2,4755.1,0.001]
[1755968119243,11.41313927,4755.2,4755.1,0.001]
[1755968119419,11.08402836,4755.2,4755.1,0.001]
[1755968119732,11.0840142,4755.2,4755.1,0.001]
[1755968121705,10.4012142,4755.2,4755.1,0.001]
[1755968122338,11.08307173,4755.2,4755.1,0.001]
[1755968123342,10.61767173,4755.2,4755.1,0.001]
[1755968123670,10.65948078,4755.2,4755.1,0.001]
[1755968123864,10.19158078,4755.2,4755.1,0.001]
[1755968124064,10.94678881,4755.2,4755.1,0.001]
[1755968124463,9.97518078,4755.2,4755.1,0.001]
[1755968124660,10.73038881,4755.2,4755.1,0.001]
[1755968125179,12.15498881,4755.2,4755.1,0.001]
[1755968125383,11.39972852,4755.2,4755.1,0.001]
[1755968127448,10.93182852,4755.2,4755.1,0.001]
[1755968127848,7.42582852,4755.2,4755.1,0.001]
[1755968128051,11.68679881,4755.2,4755.1,0.001]
[1755968128452,11.68679881,4755.2,4755.1,0.3112]
[1755968128453,10.73009881,4755.2,4755.1,0.3112]
[1755968128754,9.77848368,4755.2,4755.1,0.3112]
[1755968128952,9.97504861,4755.2,4755.1,0.001]
[1755968129414,10.73002281,4755.2,4755.1,0.001]
[1755968130265,11.02672281,4755.2,4755.1,0.001]
[1755968131186,10.69760573,4755.2,4755.1,0.001]
[1755968132688,7.19160573,4755.2,4755.1,0.001]
[1755968132864,8.29794477,4755.2,4755.1,0.3112]
[1755968133195,7.54297448,4755.2,4755.1,0.7455]
[1755968133404,7.54297448,4755.2,4755.1,0.3112]
[1755968134511,7.54297448,4755.2,4755.1,0.7455]
[1755968134802,7.87208112,4755.2,4755.1,0.7455]
[1755968135504,7.78778412,4755.2,4755.1,0.7455]
[1755968137290,8.35424836,4755.2,4755.1,0.7455]
[1755968137798,8.35433979,4755.2,4755.1,0.7455]
[1755968138003,8.02523315,4755.2,4755.1,0.7455]
[1755968138605,8.02532382,4755.2,4755.1,0.7455]
[1755968139077,8.02532339,4755.2,4755.1,0.7455]
[1755968139913,7.45885915,4755.2,4755.1,0.3112]
[1755968140217,7.26216124,4755.2,4755.1,0.7455]
[1755968140989,7.59125558,4755.2,4755.1,0.7455]
[1755968142993,7.48545558,4755.2,4755.1,0.7455]
[1755968144220,7.48545558,4755.2,4755.1,0.3112]
[1755968144918,7.48545558,4755.2,4755.1,0.001]
[1755968145121,10.08167214,4755.2,4755.1,0.001]
[1755968145292,11.57033638,4755.2,4755.1,0.001]
[1755968148121,11.37378078,4755.2,4755.1,0.001]
[1755968148343,11.57025152,4755.2,4755.1,0.001]
[1755968149033,11.1770833,4755.2,4755.1,0.001]
[1755968149233,8.7028021,4755.2,4755.1,0.001]
[1755968149430,5.3026021,4755.2,4755.1,0.2907]
[1755968149629,8.8076021,4755.2,4755.1,0.2907]
[1755968150031,8.47850776,4755.2,4755.1,0.2907]
[1755968150412,4.97350776,4755.2,4755.1,0.2907]
[1755968150612,8.47850776,4755.2,4755.1,0.2907]
[1755968151155,8.02420776,4755.2,4755.1,0.2907]
[1755968151452,0.95274352,4755.2,4755.1,2.82260519]
[1755968151671,0.002,4755.2,4755.1,3.10706571]
[1755968152354,0.002,4755.2,4755.1,3.30429251]
[1755968153349,0.002,4755.2,4755.1,3.10706571]
[1755968155357,0.002,4755.2,4755.1,3.26668553]
[1755968156373,0.002,4755.2,4755.1,3.35093853]
[1755968156574,1e-08,4755.2,4755.1,8.62793853]
[1755968157257,1e-08,4755.4,4755.3,2.76291674]
[1755968157436,1e-08,4755.4,4755.3,8.19449474]
[1755968157637,1e-08,4755.4,4755.3,8.62339474]
[1755968158837,1e-08,4755.4,4755.3,8.72773225]
[1755968161669,1e-08,4756.1,4756.0,5.76260723]
[1755968161868,1e-08,4756.1,4756.0,11.96083521]
[1755968162166,1e-08,4756.1,4756.0,12.38973521]
[1755968162348,1e-08,4756.1,4756.0,12.47396821]
[1755968162549,1e-08,4756.1,4756.0,12.57876821]
[1755968165066,1e-08,4756.2,4756.1,5.76256302]
[1755968165265,1e-08,4756.2,4756.1,8.62304102]
[1755968165468,0.002,4756.9,4756.4,2.7624304]
[1755968165669,0.002,4756.9,4756.4,17.3038988]
[1755968165844,1e-08,4756.5,4756.4,3.4810304]
[1755968166039,1e-08,4756.5,4756.4,8.59340522]
[1755968166369,1e-08,4756.5,4756.4,8.59240522]
[1755968166739,1e-08,4756.5,4756.4,5.08840522]
[1755968166936,1e-08,4756.5,4756.4,8.59340522]
[1755968167139,1e-08,4756.5,4756.4,5.08840522]
[1755968167362,1e-08,4756.5,4756.4,8.59340522]
[1755968167767,1e-08,4756.5,4756.4,5.08840522]
[1755968167967,1e-08,4756.5,4756.4,8.59240522]
[1755968169674,1e-08,4756.7,4756.6,3.66]
[1755968169980,1e-08,4756.7,4756.6,6.052042]
[1755968170181,1e-08,4756.8,4756.7,5.76229781]
[1755968170491,1e-08,4756.8,4756.7,12.12677581]
[1755968171291,0.002,4757.0,4756.9,2.76220942]
[1755968171586,0.002,4757.0,4756.9,4.66890942]
[1755968171870,0.002,4757.0,4756.9,6.51935321]
[1755968172676,0.002,4757.0,4756.9,6.60357021]
[1755968173664,0.002,4757.0,4756.9,10.10657021]
[1755968175192,0.002,4757.0,4756.9,10.21137021]
[1755968176190,0.002,4757.0,4756.9,14.46137021]
[1755968176550,0.002,4757.0,4756.9,10.52947021]
[1755968176752,0.3109,4757.0,4756.9,9.49277021]
[1755968177084,0.751,4757.0,4756.9,9.49277021]
[1755968177282,0.3109,4757.0,4756.9,9.49277021]
[1755968177840,0.751,4757.0,4756.9,3.62855321]
[1755968178074,0.751,4757.0,4756.9,0.1048]
[1755968182247,0.751,4757.0,4756.9,2.20700942]
[1755968182960,0.751,4757.0,4756.9,0.1048]
[1755968185191,0.751,4757.0,4756.8,0.021]
[1755968185192,14.4977684,4757.0,4756.8,0.021]
[1755968185349,3.90310099,4756.9,4756.8,0.021]
[1755968185550,6.30871041,4756.9,4756.8,0.021]
[1755968185764,4.20650099,4756.9,4756.8,0.021]
[1755968186379,6.30871041,4756.9,4756.8,0.021]
[1755968186579,6.94072641,4756.9,4756.8,0.021]
[1755968187093,7.5036111,4756.9,4756.8,0.001]
[1755968187482,6.94072641,4756.9,4756.8,0.001]
[1755968188665,10.44872641,4756.9,4756.8,0.001]
[1755968189105,6.81571041,4756.9,4756.8,0.001]
[1755968189311,9.81571041,4756.9,4756.8,0.001]
[1755968189990,9.89997041,4756.9,4756.8,0.001]
[1755968191105,10.22896564,4756.9,4756.8,0.001]
[1755968192365,4.16815622,4756.9,4756.8,0.001]
[1755968192571,6.63770564,4756.9,4756.8,0.001]
[1755968192794,6.63765391,4756.9,4756.8,0.001]
[1755968195233,4.64024449,4756.9,4756.8,0.001]
[1755968195521,7.14039523,4756.9,4756.8,0.001]
[1755968195668,4.08399523,4756.9,4756.8,0.001]
[1755968196103,3.71665623,4756.9,4756.8,0.001]
[1755968196405,3.83799523,4756.9,4756.8,0.001]
[1755968197785,4.14139523,4756.9,4756.8,0.001]
[1755968197979,4.264,4756.9,4756.8,0.001]
[1755968198208,0.755,4756.9,4756.8,0.001]
[1755968198385,4.263,4756.9,4756.8,0.001]
[1755968199403,3.8114,4756.9,4756.8,0.001]
[1755968199609,4.263,4756.9,4756.8,0.001]
[1755968199803,3.8114,4756.9,4756.8,0.001]
[1755968200178,4.263,4756.9,4756.8,0.001]
[1755968201609,4.265,4756.9,4756.8,0.001]
[1755968202005,7.265,4756.9,4756.8,0.001]
[1755968202878,9.36720942,4756.9,4756.8,0.001]
[1755968203080,9.45147342,4756.9,4756.8,0.001]
[1755968203278,9.90360764,4756.9,4756.8,0.001]
[1755968204082,10.09989214,4756.9,4756.8,0.001]
[1755968204705,10.04989214,4756.9,4756.8,0.001]
[1755968205307,10.15469214,4756.9,4756.8,0.001]
[1755968205814,10.15475686,4756.9,4756.8,0.001]
[1755968206219,10.71773981,4756.9,4756.8,0.001]
[1755968207216,10.15485512,4756.9,4756.8,0.001]
[1755968209532,9.70325512,4756.9,4756.8,0.001]
[1755968209831,10.70162638,4756.9,4756.8,0.001]
[1755968210950,10.13545512,4756.9,4756.8,0.001]
[1755968211149,10.46444718,4756.9,4756.8,0.001]
[1755968215348,10.2679997,4756.9,4756.8,0.001]
[1755968215555,10.46479306,4756.9,4756.8,0.001]
[1755968216055,10.46479304,4756.9,4756.8,0.001]
[1755968216219,11.21976333,4756.9,4756.8,0.001]
[1755968217749,10.58290088,4756.9,4756.8,0.001]
[1755968217957,11.24290088,4756.9,4756.8,0.001]
[1755968218256,10.91390882,4756.9,4756.8,0.001]
[1755968218453,8.8116994,4756.9,4756.3,0.001]
[1755968218654,3.7648,4756.4,4756.3,0.001]
[1755968218949,10.4395223,4756.4,4756.3,0.001]
[1755968219154,10.8717223,4756.4,4756.3,0.001]
[1755968219821,10.9560063,4756.4,4756.3,0.001]
[1755968220436,9.5655063,4756.4,4756.3,0.001]
[1755968220639,10.20295405,4756.4,4756.3,0.3083]
[1755968221051,10.81445406,4756.4,4756.3,0.3083]
[1755968221257,10.93345405,4756.4,4756.3,0.001]
[1755968221562,10.17794196,4756.4,4756.3,0.001]
[1755968221728,10.93345405,4756.4,4756.3,0.001]
[1755968222128,11.26248861,4756.4,4756.3,0.001]
[1755968222347,10.62497057,4756.4,4756.3,0.001]
[1755968222551,10.62497082,4756.4,4756.3,0.001]
[1755968223228,10.50697652,4756.4,4756.3,0.001]
[1755968224051,10.50684947,4756.4,4756.3,0.001]
[1755968224251,11.26204983,4756.4,4756.3,0.001]
[1755968228981,10.62481634,4756.4,4756.3,0.001]
[1755968229660,11.28481634,4756.4,4756.3,1e-08]
[1755968229861,2.10265144,4755.9,4755.8,0.021]
[1755968230178,27.20128722,4755.9,4755.8,0.021]
[1755968230380,28.33343953,4755.9,4755.8,0.021]
[1755968230545,28.76563953,4755.9,4755.8,0.021]
[1755968230749,18.01887113,4755.9,4755.8,0.021]
[1755968231775,18.10316813,4755.9,4755.8,0.021]
[1755968232272,16.97101582,4755.9,4755.8,0.021]
[1755968232475,18.10273153,4755.9,4755.8,0.021]
[1755968233192,17.96009618,4755.9,4755.8,0.021]
[1755968233485,5.76269565,4755.8,4755.1,0.001]
[1755968233691,16.80802936,4755.2,4755.1,0.001]